bitfinex/quotes_BTCUSD_20251015
["timestamp","ask_amount","ask_price","bid_price","bid_amount"]
[1760544053808,0.0004,111030.0,111020.0,1.16434107]
[1760544053978,0.0004,111030.0,111020.0,1.04954107]
[1760544054179,0.0004,111030.0,111020.0,1.16434107]
[1760544054375,0.0004,111030.0,111020.0,1.44954107]
[1760544054578,0.0004,111030.0,111020.0,1.90534107]
[1760544054972,0.0004,111030.0,111020.0,1.90530107]
[1760544055174,0.0004,111030.0,111020.0,1.79054107]
[1760544055376,0.0004,111030.0,111020.0,1.90430107]
[1760544055796,0.0004,111030.0,111020.0,1.90530107]
[1760544055999,0.0004,111030.0,111020.0,1.79054107]
[1760544056200,0.0004,111030.0,111020.0,1.90530107]
[1760544056425,0.0004,111030.0,111020.0,1.79054107]
[1760544056579,0.0004,111030.0,111020.0,1.90530107]
[1760544057001,0.0004,111030.0,111020.0,1.79054107]
[1760544057405,0.0004,111030.0,111020.0,1.90630107]
[1760544057604,0.0004,111030.0,111020.0,1.90530107]
[1760544058092,0.0004,111030.0,111020.0,1.90630107]
[1760544058689,0.0004,111030.0,111020.0,1.79154107]
[1760544059070,0.0004,111030.0,111020.0,1.90630107]
[1760544059459,0.0004,111030.0,111020.0,1.79154107]
[1760544059862,0.0004,111030.0,111020.0,1.90630107]
[1760544060405,1e-08,111030.0,111020.0,1.79154107]
[1760544060579,1e-08,111030.0,111020.0,1.90630107]
[1760544060743,1e-08,111030.0,111020.0,1.79154107]
[1760544061148,1e-08,111030.0,111020.0,1.79054107]
[1760544061349,1e-08,111030.0,111020.0,1.90526107]
[1760544061551,1e-08,111030.0,111020.0,1.50726107]
[1760544061754,1e-08,111030.0,111020.0,1.39054107]
[1760544061971,1e-08,111030.0,111020.0,1.90526107]
[1760544062205,1e-08,111030.0,111020.0,1.75435879]
[1760544062415,1e-08,111030.0,111020.0,1.90526107]
[1760544062614,0.0004,111050.0,111040.0,0.95099724]
[1760544062833,8e-05,111070.0,111050.0,0.55628133]
[1760544063014,8e-05,111070.0,111060.0,1.02248092]
[1760544063239,8e-05,111070.0,111060.0,1.49537492]
[1760544063414,8e-05,111070.0,111060.0,1.92243853]
[1760544063618,8e-05,111070.0,111060.0,1.80771853]
[1760544063832,8e-05,111070.0,111060.0,1.92243853]
[1760544064031,8e-05,111070.0,111060.0,1.92294075]
[1760544064237,8e-05,111070.0,111060.0,1.80822075]
[1760544064477,8e-05,111070.0,111060.0,1.92294075]
[1760544064711,8e-05,111070.0,111060.0,1.92394075]
[1760544064918,8e-05,111070.0,111060.0,1.8417873]
[1760544065133,1e-08,111080.0,111070.0,0.52006662]
[1760544065341,1e-08,111080.0,111070.0,1.49535871]
[1760544065990,1e-08,111080.0,111070.0,1.78063871]
[1760544066423,1e-08,111080.0,111070.0,1.89535871]
[1760544067273,1e-08,111080.0,111070.0,1.74445643]
[1760544067498,1e-08,111080.0,111070.0,1.41366588]
[1760544067702,1e-08,111080.0,111070.0,1.75366588]
[1760544067927,0.18002366,111100.0,111090.0,0.1800342]
[1760544068627,0.15111155,111110.0,111090.0,0.1800342]
[1760544068845,0.21140987,111110.0,111100.0,0.180018]
[1760544069056,0.18890965,111110.0,111090.0,0.1800342]
[1760544069291,0.20564471,111110.0,111090.0,0.1800342]
[1760544069534,0.18890965,111110.0,111100.0,0.180018]
[1760544069750,0.00890785,111110.0,111100.0,0.180018]
[1760544070191,0.001,111110.0,111100.0,0.18052022]
[1760544070604,0.02350022,111110.0,111100.0,0.18052022]
[1760544070836,0.001,111110.0,111100.0,0.18052022]
[1760544071037,0.002,111110.0,111100.0,0.18052022]
[1760544071247,0.001,111110.0,111100.0,0.27021034]
[1760544071484,0.001,111110.0,111100.0,1.34491003]
[1760544071688,0.001,111110.0,111100.0,1.45959003]
[1760544071896,0.0002,111130.0,111100.0,1.45959003]
[1760544071897,0.0002,111130.0,111120.0,0.5189856]
[1760544072139,0.0002,111130.0,111120.0,0.42969012]
[1760544072349,0.21156168,111130.0,111120.0,0.1799856]
[1760544072565,0.21156168,111130.0,111110.0,0.17998738]
[1760544072566,0.19806398,111130.0,111110.0,0.34]
[1760544072776,0.20249376,111120.0,111100.0,0.52051937]
[1760544072984,0.17999556,111120.0,111100.0,0.61021034]
[1760544073451,0.20250202,111110.0,111100.0,0.00050222]
[1760544073662,0.1800018,111110.0,111100.0,0.00050222]
[1760544074278,0.65456221,111110.0,111100.0,0.00050222]
[1760544074499,0.78025921,111110.0,111100.0,0.00050222]
[1760544074932,0.78862676,111110.0,111100.0,0.00050222]
[1760544075160,5.78862676,111110.0,111100.0,0.00050222]
[1760544075370,6.18480904,111110.0,111100.0,0.00050222]
[1760544075574,6.19380913,111110.0,111100.0,0.00050222]
[1760544075783,6.26100553,111110.0,111100.0,0.00050222]
[1760544075984,6.26200553,111110.0,111100.0,0.00050222]
[1760544076416,0.18005041,111080.0,111070.0,0.0717521]
[1760544076618,0.65511248,111080.0,111070.0,0.0717521]
[1760544076831,0.18008283,111060.0,111050.0,0.25185115]
[1760544077046,0.01980099,111080.0,111050.0,0.34154127]
[1760544077285,0.01980099,111080.0,111070.0,0.18006662]
[1760544077286,0.01725714,111080.0,111070.0,0.18006662]
[1760544077501,0.02300796,111080.0,111070.0,0.18006662]
[1760544077926,0.02400796,111080.0,111070.0,0.18006662]
[1760544078151,0.00050166,111080.0,111070.0,1.08431715]
[1760544079015,0.00050166,111080.0,111070.0,1.19895715]
[1760544079221,0.00050166,111080.0,111070.0,1.08531715]
[1760544079427,0.00050166,111080.0,111070.0,0.61075674]
[1760544079639,0.00050166,111080.0,111070.0,0.27075674]
[1760544080695,0.18055207,111080.0,111070.0,0.001]
[1760544080836,0.20570125,111080.0,111070.0,0.001]
[1760544081064,0.20570125,111080.0,111070.0,0.002]
[1760544081235,0.70439601,111080.0,111060.0,0.18007815]
[1760544081424,0.02197417,111070.0,111060.0,0.18007815]
[1760544081630,0.04712335,111070.0,111060.0,0.18007815]
[1760544081826,0.22718997,111070.0,111050.0,0.189104]
[1760544082053,0.20524748,111070.0,111050.0,0.189104]
[1760544082257,0.20524748,111070.0,111060.0,0.18008283]
[1760544082463,0.20524748,111070.0,111050.0,0.189104]
[1760544082662,0.20524748,111070.0,111060.0,0.18008283]
[1760544083337,0.18008283,111060.0,111040.0,0.18902874]
[1760544083535,0.19688063,111060.0,111050.0,0.18009905]
[1760544083739,0.19688063,111060.0,111040.0,0.18010608]
[1760544083949,0.21161638,111050.0,111030.0,0.18012479]
[1760544084152,0.21161638,111050.0,111020.0,0.26084415]
[1760544084153,0.18012756,111040.0,111020.0,0.26084415]
[1760544084358,0.19692536,111040.0,111020.0,0.35053427]
[1760544084564,0.0167978,111040.0,111030.0,0.18013149]
[1760544084900,0.22522045,111050.0,111030.0,0.18013149]
[1760544085102,0.21430611,111050.0,111030.0,0.18013149]
[1760544085302,0.1946973,111040.0,111030.0,0.18013149]
[1760544085507,0.01680141,111040.0,111030.0,0.18013149]
[1760544085710,0.01627328,111040.0,111030.0,0.18013149]
[1760544085920,0.19638855,111040.0,111030.0,0.18013149]
[1760544086289,0.02562164,111040.0,111030.0,0.18013149]
[1760544086506,0.00050135,111050.0,111040.0,0.19294122]
[1760544086697,0.00050135,111050.0,111040.0,0.65467568]
[1760544086833,0.00050135,111050.0,111040.0,0.99467568]
[1760544087022,0.00050135,111050.0,111040.0,0.52011527]
[1760544087643,0.00050135,111050.0,111040.0,1.0843658]
[1760544088049,0.00050135,111050.0,111040.0,1.59510849]
[1760544088288,0.00050135,111050.0,111040.0,1.99510849]
[1760544088489,0.00050135,111050.0,111040.0,1.99610849]
[1760544088752,0.00050135,111050.0,111040.0,2.11078849]
[1760544088968,0.00050135,111050.0,111040.0,1.52154808]
[1760544089169,0.00050135,111050.0,111040.0,1.63522808]
[1760544089586,0.00050135,111050.0,111040.0,1.04798767]
[1760544089803,0.00050135,111050.0,111040.0,1.4873658]
[1760544090016,0.00050135,111050.0,111040.0,0.61180539]
[1760544090227,0.1806004,111050.0,111040.0,0.003]
[1760544090439,0.1806004,111050.0,111040.0,0.18311527]
[1760544090440,0.19738174,111050.0,111040.0,0.18311527]
[1760544091059,0.19738174,111050.0,111040.0,0.002]
[1760544091266,0.18013181,111040.0,111020.0,0.18014772]
[1760544091470,0.18013149,111030.0,111020.0,0.18014772]
[1760544091676,0.18013149,111030.0,111010.0,0.26086653]
[1760544091880,0.18913757,111040.0,111020.0,0.18014772]
[1760544092082,0.20592225,111040.0,111020.0,0.19816249]
[1760544092285,0.18913757,111040.0,111020.0,0.18014772]
[1760544092908,0.18013149,111030.0,111010.0,0.27880455]
[1760544093326,0.18013149,111030.0,111020.0,0.18014772]
[1760544093764,0.18913757,111040.0,111020.0,0.18014772]
[1760544093986,0.18013149,111030.0,111010.0,0.61880455]
[1760544094209,0.19214836,111030.0,111020.0,0.18014772]
[1760544094413,0.18013149,111030.0,111020.0,0.18014772]
[1760544094631,0.18913757,111040.0,111030.0,0.18013149]
[1760544094836,0.20590654,111040.0,111030.0,0.18013149]
[1760544095260,0.20892039,111050.0,111040.0,0.18011527]
[1760544095476,0.18011527,111040.0,111030.0,0.18013149]
[1760544095681,0.18960535,111050.0,111030.0,0.18013149]
[1760544095888,0.18011527,111040.0,111030.0,0.18013149]
[1760544096094,0.20139555,111040.0,111020.0,0.1891551]
[1760544096300,0.18011527,111040.0,111020.0,0.1891551]
[1760544096706,0.18011527,111040.0,111030.0,0.18013149]
[1760544097540,0.00050135,111050.0,111040.0,0.18011527]
[1760544097748,0.02301373,111050.0,111040.0,0.18011527]
[1760544098191,0.00050135,111050.0,111040.0,0.18011527]
[1760544098391,0.02256898,111050.0,111040.0,0.18011527]
[1760544098782,0.00050135,111050.0,111040.0,0.18011527]
[1760544098991,0.02301373,111050.0,111040.0,0.18011527]
[1760544099210,0.20311278,111050.0,111030.0,0.26982161]
[1760544099418,0.19812002,111050.0,111040.0,0.18011527]
[1760544099626,0.20224175,111050.0,111040.0,0.18011527]
[1760544100027,0.19548633,111050.0,111040.0,0.18011527]
[1760544100228,0.18011527,111040.0,111030.0,0.18013149]
[1760544100440,0.18011527,111040.0,111020.0,0.5291551]
[1760544100639,0.20264792,111030.0,111020.0,0.18014772]
[1760544100872,0.18013149,111030.0,111020.0,0.18014772]
[1760544101866,0.18909593,111030.0,111020.0,0.18014772]
[1760544102079,0.00896444,111030.0,111020.0,0.18014772]
[1760544102228,0.18011527,111040.0,111030.0,0.18013149]
[1760544102492,0.18960535,111050.0,111030.0,0.18012992]
[1760544102668,0.20262967,111040.0,111020.0,0.18114772]
[1760544103013,0.18013149,111030.0,111020.0,0.18114772]
[1760544103613,0.18011527,111040.0,111030.0,0.18013149]
[1760544103855,0.19691532,111040.0,111030.0,0.18013149]
[1760544104246,0.01680005,111040.0,111030.0,0.18013149]
[1760544104487,0.18960535,111050.0,111040.0,0.18011527]
[1760544104658,0.00941338,111050.0,111040.0,0.18011527]
[1760544104865,0.21202481,111050.0,111030.0,0.18113149]
[1760544105069,0.18011527,111040.0,111030.0,0.001]
[1760544105276,0.18011527,111040.0,111020.0,0.18014772]
[1760544105452,0.18013149,111030.0,111020.0,0.18014772]
[1760544105654,0.18013149,111030.0,111010.0,0.18911443]
[1760544105866,0.18013149,111030.0,111020.0,0.18014772]
[1760544106471,0.18912103,111040.0,111020.0,0.18014772]
[1760544106669,0.18952412,111050.0,111030.0,0.19814463]
[1760544106958,0.0225144,111040.0,111030.0,0.18013149]
[1760544107267,0.18951243,111050.0,111040.0,0.18011527]
[1760544108042,0.00050135,111050.0,111040.0,0.26980539]
[1760544108642,0.1806004,111050.0,111040.0,0.08969012]
[1760544108845,0.1806004,111050.0,111040.0,0.18011527]
[1760544109047,0.1806004,111050.0,111030.0,0.18013149]
[1760544109251,0.1806004,111050.0,111030.0,0.26982161]
[1760544109468,0.1806004,111050.0,111040.0,0.001]
[1760544109670,0.18952719,111050.0,111040.0,0.18011527]
[1760544109895,0.18011527,111040.0,111030.0,0.26982161]
[1760544110102,0.18011527,111040.0,111020.0,0.5291551]
[1760544110314,0.18011527,111040.0,111010.0,0.26086653]
[1760544110315,0.18013149,111030.0,111010.0,0.26086653]
[1760544110517,0.18011527,111040.0,111020.0,0.18014772]
[1760544110733,0.18013149,111030.0,111020.0,0.18014772]
[1760544110932,0.16801409,111040.0,111020.0,0.18014772]
[1760544111067,0.19170736,111030.0,111020.0,0.18014772]
[1760544111270,0.18013149,111030.0,111020.0,0.18114772]
[1760544111797,0.16801409,111040.0,111020.0,0.18014772]
[1760544112003,0.20737197,111040.0,111030.0,0.18113149]
[1760544112203,0.18485757,111040.0,111030.0,0.18113149]
[1760544112440,0.03935788,111040.0,111030.0,0.18013149]
[1760544112641,0.21947315,111040.0,111030.0,0.18013149]
[1760544113005,0.0225144,111040.0,111030.0,0.18013149]
[1760544113219,0.01684657,111040.0,111030.0,0.18013149]
[1760544113419,0.02627469,111050.0,111040.0,0.18011527]
[1760544113622,0.22888569,111050.0,111040.0,0.18011527]
[1760544113857,0.20637331,111050.0,111040.0,0.18011527]
[1760544114193,0.02627426,111050.0,111040.0,0.18011527]
[1760544114413,0.00942814,111050.0,111040.0,0.18011527]
[1760544114640,0.00050135,111050.0,111040.0,0.18011527]
[1760544115162,0.00050135,111050.0,111040.0,0.18211527]
[1760544115370,0.00050135,111050.0,111040.0,0.18111527]
[1760544115814,0.00050135,111050.0,111040.0,0.18211527]
[1760544116445,0.00050135,111050.0,111040.0,0.27180539]
[1760544117325,0.00050135,111050.0,111040.0,0.7463658]
[1760544117542,0.00050135,111050.0,111040.0,0.27180539]
[1760544117722,0.1806004,111050.0,111040.0,0.27180539]
[1760544117927,0.00050135,111050.0,111040.0,0.27180539]
[1760544118308,0.00050135,111050.0,111040.0,1.0863658]
[1760544118861,0.00050135,111050.0,111040.0,0.61180539]
[1760544120547,0.1806004,111050.0,111040.0,0.002]
[1760544120765,0.0173585,111050.0,111040.0,0.18211527]
[1760544120993,0.00050135,111050.0,111040.0,0.18211527]
[1760544121190,0.65516081,111050.0,111040.0,0.002]
[1760544121425,0.69143577,111050.0,111040.0,0.002]
[1760544122049,0.62615556,111050.0,111040.0,0.002]
[1760544122252,0.64557474,111050.0,111040.0,0.002]
[1760544122462,0.64557474,111050.0,111040.0,0.001]
[1760544123110,0.22236581,111070.0,111040.0,0.18011527]
[1760544123111,0.67265431,111070.0,111040.0,0.18011527]
[1760544123316,0.05372553,111070.0,111060.0,0.18008283]
[1760544123527,0.03430699,111070.0,111060.0,0.18008283]
[1760544124152,0.03430699,111070.0,111040.0,0.53027119]
[1760544124153,0.18008283,111060.0,111040.0,0.53027119]
[1760544124396,0.67149965,111060.0,111040.0,0.18126352]
[1760544124621,0.67717184,111050.0,111040.0,0.00115016]
[1760544124821,0.6909325,111050.0,111040.0,0.00115016]
[1760544125244,0.69936129,111050.0,111040.0,0.00015016]
[1760544125617,0.78905141,111050.0,111040.0,0.00015016]
[1760544126734,0.30606221,111050.0,111040.0,0.00015016]
[1760544126960,0.19695387,111050.0,111040.0,0.00015016]
[1760544127117,0.67151428,111050.0,111040.0,0.00015016]
[1760544127309,0.6909325,111050.0,111040.0,0.00015016]
[1760544127906,0.19695387,111050.0,111040.0,0.00015016]
[1760544128202,0.19695387,111050.0,111040.0,0.18026543]
[1760544128860,0.19695387,111050.0,111040.0,0.00015016]
[1760544129088,0.19695387,111050.0,111040.0,0.18026543]
[1760544129544,0.1969584,111050.0,111040.0,0.18026543]
[1760544129770,0.01685935,111050.0,111040.0,0.18026543]
[1760544130006,0.1969584,111050.0,111040.0,0.18026543]
[1760544130234,0.18009905,111050.0,111040.0,0.18026543]
[1760544130471,0.18009905,111050.0,111040.0,0.00015016]
[1760544131104,0.65464324,111060.0,111040.0,0.18026543]
[1760544131312,0.19694144,111060.0,111050.0,0.18009905]
[1760544131513,0.53809233,111070.0,111060.0,0.18008283]
[1760544131716,0.64463989,111070.0,111050.0,0.18009905]
[1760544131922,0.34,111060.0,111050.0,0.18009905]
[1760544132130,0.21339995,111090.0,111060.0,0.18008283]
[1760544132374,0.20256046,111080.0,111060.0,0.18008283]
[1760544132603,0.19691024,111080.0,111070.0,0.18006662]
[1760544133102,0.18003744,111090.0,111080.0,0.18004195]
[1760544133325,0.19951164,111100.0,111090.0,0.1800342]
[1760544133326,0.180018,111100.0,111090.0,0.1800342]
[1760544133729,0.19805229,111110.0,111090.0,0.1800342]
[1760544134020,0.23805229,111110.0,111090.0,0.1800342]
[1760544134511,0.20453345,111130.0,111090.0,0.1800342]
[1760544134512,0.0002,111130.0,111110.0,0.1800018]
[1760544134765,0.18016969,111130.0,111100.0,0.1890189]
[1760544134978,0.20266586,111130.0,111100.0,0.1890189]
[1760544135192,0.17998614,111120.0,111110.0,0.1800018]
[1760544136498,0.17998614,111120.0,111100.0,0.1890189]
[1760544136499,0.1800018,111110.0,111100.0,0.1890189]
[1760544136711,0.17998614,111120.0,111100.0,0.1890189]
[1760544136925,0.1799856,111120.0,111110.0,0.01410453]
[1760544137133,0.1799856,111120.0,111110.0,0.19410633]
[1760544137408,0.19830737,111130.0,111110.0,0.1810018]
[1760544137619,0.0002,111130.0,111120.0,0.1799856]
[1760544137831,0.20266575,111130.0,111110.0,0.1810018]
[1760544138041,0.1799856,111120.0,111110.0,0.19755308]
[1760544138447,0.1799856,111120.0,111110.0,0.1810018]
[1760544138857,0.1799856,111120.0,111110.0,0.001]
[1760544139088,0.92305739,111130.0,111110.0,0.19746734]
[1760544139089,0.18898789,111130.0,111110.0,0.19746734]
[1760544139284,0.18898789,111130.0,111110.0,0.18100036]
[1760544139520,0.0224982,111120.0,111110.0,0.18000036]
[1760544139750,0.2024838,111120.0,111110.0,0.18000036]
[1760544139954,0.1799856,111120.0,111110.0,0.18000036]
[1760544140159,0.1799856,111120.0,111090.0,0.18918607]
[1760544140407,0.1800018,111110.0,111100.0,0.180018]
[1760544140635,0.19798636,111130.0,111110.0,0.1800018]
[1760544140850,0.00901831,111130.0,111120.0,0.1799856]
[1760544141069,0.1799856,111120.0,111110.0,0.1810018]
[1760544141282,0.1799856,111120.0,111110.0,0.1800018]
[1760544141488,0.18898771,111130.0,111110.0,0.1800018]
[1760544141712,0.00901831,111130.0,111120.0,0.1799856]
[1760544141917,0.1801694,111130.0,111120.0,0.1799856]
[1760544142126,0.20266557,111130.0,111120.0,0.1799856]
[1760544142340,0.1801694,111130.0,111120.0,0.1799856]
[1760544142559,0.1800018,111110.0,111100.0,0.001]
[1760544142784,0.9140713,111110.0,111100.0,0.001]
[1760544143001,0.1800018,111110.0,111100.0,0.001]
[1760544143210,0.1800018,111110.0,111100.0,0.180018]
[1760544143418,0.1800018,111110.0,111090.0,0.18018173]
[1760544143658,0.180018,111100.0,111090.0,0.18018173]
[1760544143877,0.1763568,111110.0,111090.0,0.18018173]
[1760544144092,0.180018,111100.0,111090.0,0.18018173]
[1760544144726,0.180018,111100.0,111090.0,0.00015016]
[1760544145187,0.9140875,111100.0,111090.0,0.00015016]
[1760544145647,0.180018,111100.0,111090.0,0.00015016]
[1760544145872,0.180018,111100.0,111090.0,0.00115016]
[1760544146320,0.180018,111100.0,111090.0,0.00015016]
[1760544146793,0.9140875,111100.0,111090.0,0.00015016]
[1760544147479,0.180018,111100.0,111090.0,0.00015016]
[1760544147962,0.180018,111100.0,111090.0,0.18018436]
[1760544148624,0.180018,111100.0,111090.0,0.00015016]
[1760544149347,0.180018,111100.0,111090.0,0.18018436]
[1760544149586,0.5200018,111110.0,111100.0,0.180018]
[1760544149811,0.28778103,111130.0,111110.0,0.1800018]
[1760544150034,0.29615616,111130.0,111110.0,0.1800018]
[1760544150257,0.2024838,111120.0,111100.0,0.1890189]
[1760544150484,0.1799856,111120.0,111110.0,0.1800018]
[1760544150706,0.1800018,111110.0,111100.0,0.18001325]
[1760544152018,0.1980999,111130.0,111110.0,0.1800018]
[1760544152311,0.35749857,111130.0,111120.0,0.1799856]
[1760544152510,0.00912304,111130.0,111120.0,0.1799856]
[1760544152719,0.0224261,111130.0,111120.0,0.1799856]
[1760544152922,0.18939019,111130.0,111110.0,0.1800018]
[1760544153173,0.18526058,111130.0,111110.0,0.1800018]
[1760544153367,0.18526058,111130.0,111110.0,0.18000104]
[1760544154715,0.1799856,111120.0,111110.0,0.18000104]
[1760544155353,0.16220603,111130.0,111120.0,0.1799856]
[1760544155585,0.18632817,111130.0,111110.0,0.18000104]
[1760544155794,0.18632817,111130.0,111120.0,0.1799856]
[1760544156005,0.00837904,111130.0,111120.0,0.1799856]
[1760544156211,0.52843892,111140.0,111120.0,0.1799856]
[1760544156390,0.52844274,111140.0,111130.0,0.1799694]
[1760544156800,0.52844274,111140.0,111120.0,0.1799856]
[1760544157000,0.01760817,111140.0,111130.0,0.1799694]
[1760544157385,0.00838286,111140.0,111130.0,0.1799694]
[1760544157595,0.17995321,111140.0,111130.0,0.18011956]
[1760544157767,0.18833607,111140.0,111130.0,0.18011956]
[1760544158425,0.1972408,111140.0,111130.0,0.00015016]
[1760544159788,0.18885794,111140.0,111130.0,0.00015016]
[1760544159988,0.19725321,111140.0,111130.0,0.00015016]
[1760544160211,0.21404375,111140.0,111130.0,0.00015016]
[1760544160839,0.94804907,111140.0,111130.0,0.00015016]
[1760544161001,0.9673612,111140.0,111130.0,0.00015016]
[1760544161200,0.23335588,111140.0,111130.0,0.00015016]
[1760544161410,0.21404375,111140.0,111130.0,0.00015016]
[1760544162936,0.94806857,111140.0,111130.0,0.00015016]
[1760544163153,1.02398495,111140.0,111130.0,0.00015016]
[1760544163516,1.11367507,111140.0,111130.0,0.00015016]
[1760544163730,1.48793903,111140.0,111130.0,0.00015016]
[1760544163952,1.49177403,111140.0,111130.0,0.00015016]
[1760544164449,0.72155791,111140.0,111130.0,0.00015016]
[1760544164673,0.70539178,111140.0,111130.0,0.00015016]
[1760544164889,1.4293971,111140.0,111130.0,0.00015016]
[1760544165296,1.4313971,111140.0,111130.0,0.00015016]
[1760544165506,1.4303971,111140.0,111130.0,0.00015016]
[1760544165748,1.4293971,111140.0,111130.0,0.00015016]
[1760544165966,1.4303971,111140.0,111130.0,0.00015016]
[1760544166811,1.4403971,111140.0,111130.0,0.00015016]
[1760544167036,6.45656323,111140.0,111130.0,0.00015016]
[1760544167484,0.7448845,111140.0,111130.0,0.00015016]
[1760544167714,0.68830826,111140.0,111130.0,0.00015016]
[1760544168133,1.42231358,111140.0,111130.0,0.00015016]
[1760544168566,1.42131358,111140.0,111130.0,0.00015016]
[1760544168775,1.42939741,111140.0,111130.0,0.00015016]
[1760544169890,1.47788982,111140.0,111130.0,0.00015016]
[1760544170553,6.5340721,111140.0,111130.0,0.00015016]
[1760544170760,0.1800342,111090.0,111080.0,0.0717521]
[1760544170980,0.18002578,111100.0,111080.0,0.25195325]
[1760544171192,0.02250427,111090.0,111080.0,0.25195325]
[1760544171400,0.20425166,111110.0,111090.0,0.18002061]
[1760544171637,0.02250225,111100.0,111090.0,0.18002061]
[1760544171850,0.21093827,111100.0,111090.0,0.18002061]
[1760544172052,0.18843602,111100.0,111090.0,0.18002061]
[1760544172891,0.18843602,111100.0,111080.0,0.26989127]
[1760544173107,0.20527219,111100.0,111090.0,0.1800342]
[1760544173512,0.02525419,111100.0,111090.0,0.1800342]
[1760544173716,0.22777444,111100.0,111090.0,0.1800342]
[1760544173918,0.02525419,111100.0,111090.0,0.1800342]
[1760544174197,0.03092027,111100.0,111090.0,0.1800342]
[1760544174824,0.02250225,111100.0,111090.0,0.1800342]
[1760544175804,0.18900333,111110.0,111100.0,0.180018]
[1760544176007,0.2142562,111110.0,111100.0,0.180018]
[1760544177236,0.02525287,111110.0,111100.0,0.180018]
[1760544178264,0.18898488,111120.0,111100.0,0.180018]
[1760544178440,0.55424534,111120.0,111100.0,0.180018]
[1760544178641,0.57355747,111120.0,111100.0,0.181018]
[1760544178884,0.57355747,111120.0,111110.0,0.1800018]
[1760544179061,0.56455819,111120.0,111110.0,0.1800018]
[1760544179271,0.18840575,111120.0,111110.0,0.1800018]
[1760544179479,0.1800018,111110.0,111100.0,0.180018]
[1760544180518,0.11224673,111120.0,111100.0,0.180018]
[1760544180726,0.02250022,111110.0,111100.0,0.180018]
[1760544181124,0.20250202,111110.0,111100.0,0.180018]
[1760544181338,0.11224673,111120.0,111110.0,0.1800018]
[1760544181539,0.14156867,111120.0,111100.0,0.180018]
[1760544181762,0.14156867,111120.0,111110.0,0.1800018]
[1760544181995,0.00842077,111120.0,111110.0,0.1800018]
[1760544182196,0.2082664,111140.0,111130.0,0.1799694]
[1760544182337,0.2082664,111140.0,111120.0,0.1799856]
[1760544182338,0.20522025,111140.0,111120.0,0.1799856]
[1760544182540,0.02249617,111130.0,111120.0,0.1799856]
[1760544182753,0.03091585,111130.0,111120.0,0.1799856]
[1760544182949,0.00841968,111130.0,111120.0,0.1799856]
[1760544183148,0.19735007,111140.0,111120.0,0.1799856]
[1760544183349,0.20246557,111130.0,111120.0,0.18013634]
[1760544183559,0.00841877,111130.0,111120.0,0.18013634]
[1760544183759,0.02249617,111130.0,111120.0,0.18013634]
[1760544183960,0.03091494,111130.0,111120.0,0.18013634]
[1760544184254,0.00897621,111140.0,111130.0,0.1799694]
[1760544184480,0.22490899,111140.0,111130.0,0.1799694]
[1760544184867,0.20520713,111140.0,111130.0,0.1799694]
[1760544185156,0.02525392,111140.0,111130.0,0.1799694]
[1760544185357,0.00841797,111140.0,111130.0,0.1799694]
[1760544185542,0.17995321,111140.0,111130.0,0.1799694]
[1760544185877,0.00841797,111140.0,111130.0,0.1799694]
[1760544186085,0.20244736,111140.0,111120.0,0.92314094]
[1760544186285,0.17993864,111150.0,111130.0,0.1799694]
[1760544186404,0.02249415,111140.0,111130.0,0.1799694]
[1760544188520,0.34904213,111160.0,111130.0,0.1819694]
[1760544188720,0.01745613,111160.0,111150.0,0.17993702]
[1760544188890,0.0002,111170.0,111160.0,0.17992083]
[1760544190081,0.18060672,111170.0,111150.0,0.17993702]
[1760544190417,0.18060672,111170.0,111150.0,1.00363246]
[1760544190610,0.18060672,111170.0,111160.0,0.17992083]
[1760544190816,0.00070207,111170.0,111160.0,0.17992083]
[1760544191582,0.18060672,111170.0,111160.0,0.17992083]
[1760544191877,0.00070207,111170.0,111160.0,0.17992083]
[1760544192068,0.00070207,111170.0,111160.0,0.91392615]
[1760544192301,0.00070207,111170.0,111160.0,0.17992083]
[1760544193910,0.00070207,111170.0,111160.0,0.18092083]
[1760544194077,0.00070207,111170.0,111160.0,0.18192083]
[1760544195522,0.18060672,111170.0,111160.0,0.002]
[1760544195737,0.18060672,111170.0,111160.0,0.18192083]
[1760544195948,0.00070207,111170.0,111160.0,0.18192083]
[1760544196785,0.01978729,111170.0,111160.0,0.002]
[1760544197023,0.19969194,111170.0,111160.0,0.18192083]
[1760544197239,0.18060672,111170.0,111160.0,0.18092083]
[1760544197659,0.18060672,111170.0,111160.0,0.17992083]
[1760544198072,0.17992083,111160.0,111140.0,0.26068847]
[1760544198278,0.17992083,111160.0,111150.0,0.17993702]
[1760544198702,0.17993702,111150.0,111140.0,0.18893637]
[1760544198921,0.17993702,111150.0,111130.0,0.17995834]
[1760544199131,0.02249415,111140.0,111130.0,0.17995515]
[1760544199341,0.34,111160.0,111150.0,0.18093702]
[1760544199877,0.51992083,111160.0,111150.0,0.001]
[1760544200330,0.51992083,111160.0,111150.0,0.18093702]
[1760544200542,0.51992083,111160.0,111150.0,0.17993702]
[1760544200746,0.34,111160.0,111150.0,0.17993702]
[1760544200982,0.51992083,111160.0,111150.0,0.17993702]
[1760544201344,0.51992083,111160.0,111140.0,0.17995141]
[1760544201549,0.19140826,111150.0,111140.0,0.17995141]
[1760544201753,0.51992083,111160.0,111150.0,0.17993702]
[1760544203199,0.34,111160.0,111150.0,0.65386285]
[1760544203415,0.18960226,111170.0,111150.0,0.65386285]
[1760544203416,0.52060672,111170.0,111150.0,0.17993702]
[1760544203630,0.20174071,111160.0,111150.0,0.17993702]
[1760544203862,0.17992083,111160.0,111150.0,0.17993702]
[1760544204276,0.52960195,111170.0,111150.0,0.17993702]
[1760544204479,0.52899734,111170.0,111150.0,0.17993702]
[1760544204705,0.52060672,111170.0,111150.0,0.17993702]
[1760544204920,0.52060672,111170.0,111160.0,0.17992083]
[1760544205160,0.17992083,111160.0,111150.0,0.17993702]
[1760544205370,0.17992083,111160.0,111140.0,0.18894578]
[1760544205775,0.20005426,111150.0,111140.0,0.18894578]
[1760544205982,0.17993702,111150.0,111140.0,0.17995321]
[1760544206207,0.18891687,111160.0,111150.0,0.17993702]
[1760544206208,0.52891687,111160.0,111150.0,0.17993702]
[1760544206606,0.51992083,111160.0,111150.0,0.17993702]
[1760544206834,0.17995073,111160.0,111150.0,0.17993702]
[1760544207044,0.18960195,111170.0,111150.0,0.17993702]
[1760544207263,0.28769299,111170.0,111150.0,0.17993702]
[1760544207471,0.17992086,111160.0,111140.0,0.18895087]
[1760544207671,0.20241096,111160.0,111140.0,0.18895087]
[1760544207913,0.1883228,111160.0,111140.0,0.18895087]
[1760544208121,0.20962579,111160.0,111140.0,0.18895087]
[1760544208342,0.20122385,111160.0,111150.0,0.17993702]
[1760544208556,0.00070207,111170.0,111160.0,0.17992083]
[1760544208819,0.00070207,111170.0,111160.0,0.65384666]
[1760544210513,0.00070207,111170.0,111160.0,0.65484666]
[1760544210888,0.00070207,111170.0,111160.0,0.18092083]
[1760544211312,0.00070207,111170.0,111160.0,0.65584666]
[1760544211937,0.00070207,111170.0,111160.0,0.18192083]